[Event "Titled Tuesday Blitz August 09 Early 2022"]
[White "Matlakov, Maxim"]
[Black "Yaksin, Oleg"]
[WhiteFideId "4168003"]
[BlackFideId "24105880"]
[WhiteElo "2669"]
[BlackElo "2256"]
[Result "1-0"]
[Round "07"]
[TimeControl "180+1"]
[Date "2022.08.09"]
[WhiteClock "0:01:51"]
[BlackClock "0:00:09"]

1. Nf3 {[%clk 0:03:00]}  d5 {[%clk 0:02:26]} 2. e3 {[%clk 0:02:59]}  Nf6 {[%clk 0:02:24]} 3. b3 {[%clk 0:02:59]}  g6 {[%clk 0:02:23]} 4. Bb2 {[%clk 0:02:59]}  Bg7 {[%clk 0:02:23]} 5. c4 {[%clk 0:02:59]}  c6 {[%clk 0:02:22]} 6. Be2 {[%clk 0:02:59]}  O-O {[%clk 0:02:22]} 7. O-O {[%clk 0:02:59]}  Nbd7 {[%clk 0:02:22]} 8. d4 {[%clk 0:02:57]}  Ne4 {[%clk 0:02:16]} 9. Nbd2 {[%clk 0:02:57]}  f5 {[%clk 0:02:13]} 10. cxd5 {[%clk 0:02:55]}  cxd5 {[%clk 0:02:12]} 11. Rc1 {[%clk 0:02:56]}  Ndf6 {[%clk 0:02:09]} 12. Ne5 {[%clk 0:02:55]}  Be6 {[%clk 0:02:04]} 13. Ndf3 {[%clk 0:02:50]}  Rc8 {[%clk 0:01:56]} 14. Nd3 {[%clk 0:02:48]}  Qd6 {[%clk 0:01:42]} 15. Nfe5 {[%clk 0:02:46]}  Rxc1 {[%clk 0:01:34]} 16. Qxc1 {[%clk 0:02:47]}  Rc8 {[%clk 0:01:34]} 17. Qa1 {[%clk 0:02:47]}  Qb4 {[%clk 0:01:17]} 18. Nf4 {[%clk 0:02:31]}  Bf7 {[%clk 0:00:57]} 19. Rc1 {[%clk 0:02:25]}  Rxc1+ {[%clk 0:00:47]} 20. Qxc1 {[%clk 0:02:26]}  Qd2 {[%clk 0:00:38]} 21. Qxd2 {[%clk 0:02:26]}  Nxd2 {[%clk 0:00:38]} 22. f3 {[%clk 0:02:27]}  g5 {[%clk 0:00:25]} 23. Nfd3 {[%clk 0:02:27]}  e6 {[%clk 0:00:14]} 24. Kf2 {[%clk 0:02:26]}  Bf8 {[%clk 0:00:13]} 25. Ke1 {[%clk 0:02:24]}  Nb1 {[%clk 0:00:14]} 26. Kd1 {[%clk 0:02:24]}  Na3 {[%clk 0:00:13]} 27. Nc5 {[%clk 0:02:24]}  b6 {[%clk 0:00:06]} 28. Bxa3 {[%clk 0:02:22]}  bxc5 {[%clk 0:00:06]} 29. Bxc5 {[%clk 0:02:23]}  Bxc5 {[%clk 0:00:02]} 30. dxc5 {[%clk 0:02:24]}  Be8 {[%clk 0:00:02]} 31. b4 {[%clk 0:02:23]}  Kf8 {[%clk 0:00:02]} 32. b5 {[%clk 0:02:23]}  Ke7 {[%clk 0:00:02]} 33. Kd2 {[%clk 0:02:23]}  Kd8 {[%clk 0:00:02]} 34. Kc3 {[%clk 0:02:23]}  Kc7 {[%clk 0:00:03]} 35. a4 {[%clk 0:02:23]}  h5 {[%clk 0:00:03]} 36. a5 {[%clk 0:02:23]}  g4 {[%clk 0:00:02]} 37. Kd4 {[%clk 0:02:23]}  gxf3 {[%clk 0:00:02]} 38. gxf3 {[%clk 0:02:24]}  h4 {[%clk 0:00:03]} 39. b6+ {[%clk 0:02:23]}  axb6 {[%clk 0:00:03]} 40. axb6+ {[%clk 0:02:23]}  Kb7 {[%clk 0:00:04]} 41. Bf1 {[%clk 0:02:17]}  Ba4 {[%clk 0:00:03]} 42. Ng6 {[%clk 0:02:13]}  Nd7 {[%clk 0:00:02]} 43. Nxh4 {[%clk 0:02:06]}  Kc6 {[%clk 0:00:02]} 44. Ng6 {[%clk 0:02:07]}  Nxc5 {[%clk 0:00:01]} 45. Ne7+ {[%clk 0:01:52]}  Kxb6 {[%clk 0:00:02]} 46. Ke5 {[%clk 0:01:53]}  Bd1 {[%clk 0:00:01]} 47. f4 {[%clk 0:01:48]}  Bg4 {[%clk 0:00:01]} 48. h3 {[%clk 0:01:46]}  Bh5 {[%clk 0:00:01]} 49. Ng8 {[%clk 0:01:45]}  Kc6 {[%clk 0:00:02]} 50. Nf6 {[%clk 0:01:45]}  Bf3 {[%clk 0:00:02]} 51. h4 {[%clk 0:01:46]}  Nd7+ {[%clk 0:00:03]} 52. Nxd7 {[%clk 0:01:46]}  Kxd7 {[%clk 0:00:03]} 53. Kf6 {[%clk 0:01:47]}  Ke8 {[%clk 0:00:04]} 54. Kxe6 {[%clk 0:01:47]}  Kf8 {[%clk 0:00:04]} 55. Kxf5 {[%clk 0:01:47]}  Kg7 {[%clk 0:00:05]} 56. Kg5 {[%clk 0:01:48]}  Be4 {[%clk 0:00:05]} 57. f5 {[%clk 0:01:48]}  d4 {[%clk 0:00:05]} 58. exd4 {[%clk 0:01:48]}  Kf7 {[%clk 0:00:06]} 59. h5 {[%clk 0:01:48]}  Kf8 {[%clk 0:00:06]} 60. h6 {[%clk 0:01:49]}  Kg8 {[%clk 0:00:07]} 61. Bc4+ {[%clk 0:01:47]}  Kh7 {[%clk 0:00:08]} 62. d5 {[%clk 0:01:48]}  Bc2 {[%clk 0:00:06]} 63. d6 {[%clk 0:01:48]}  Ba4 {[%clk 0:00:06]} 64. Be6 {[%clk 0:01:49]}  Be8 {[%clk 0:00:06]} 65. d7 {[%clk 0:01:49]}  Bxd7 {[%clk 0:00:07]} 66. Bxd7 {[%clk 0:01:50]}  Kh8 {[%clk 0:00:07]} 67. Kg6 {[%clk 0:01:50]}  Kg8 {[%clk 0:00:08]} 68. f6 {[%clk 0:01:50]}  Kh8 {[%clk 0:00:08]} 69. Kf7 {[%clk 0:01:50]}  Kh7 {[%clk 0:00:09]} 70. Ke7 {[%clk 0:01:50]}  Kxh6 {[%clk 0:00:09]} 71. f7 {[%clk 0:01:51]} 1-0


[Site "https://www.chess.com"]

[Event "Titled Tuesday Blitz August 09 Early 2022"]
[White "Matveeva, Olga"]
[Black "Lebedev, Artem S."]
[WhiteFideId "24107018"]
[BlackFideId "34272747"]
[WhiteElo "2052"]
[BlackElo "1699"]
[Result "1/2-1/2"]
[Round "07"]
[TimeControl "180+1"]
[Date "2022.08.09"]
[WhiteClock "0:00:16"]
[BlackClock "0:00:08"]

1. d4 {[%clk 0:03:00]}  d5 {[%clk 0:02:59]} 2. c4 {[%clk 0:03:00]}  e6 {[%clk 0:02:58]} 3. Nf3 {[%clk 0:03:00]}  Nf6 {[%clk 0:02:57]} 4. g3 {[%clk 0:03:00]}  Be7 {[%clk 0:02:56]} 5. Bg2 {[%clk 0:03:01]}  O-O {[%clk 0:02:56]} 6. O-O {[%clk 0:03:01]}  dxc4 {[%clk 0:02:57]} 7. Qc2 {[%clk 0:03:01]}  b5 {[%clk 0:02:55]} 8. Ne5 {[%clk 0:02:59]}  Qxd4 {[%clk 0:02:54]} 9. Bxa8 {[%clk 0:02:54]}  Qxe5 {[%clk 0:02:54]} 10. Bf4 {[%clk 0:02:49]}  Qc5 {[%clk 0:02:39]} 11. Bg2 {[%clk 0:02:48]}  Nd5 {[%clk 0:02:38]} 12. Nc3 {[%clk 0:02:40]}  Nc6 {[%clk 0:02:31]} 13. Ne4 {[%clk 0:02:33]}  Qb6 {[%clk 0:02:28]} 14. Ng5 {[%clk 0:02:29]}  g6 {[%clk 0:02:17]} 15. Rfd1 {[%clk 0:02:20]}  Nxf4 {[%clk 0:02:07]} 16. gxf4 {[%clk 0:02:19]}  Nd4 {[%clk 0:01:56]} 17. Qe4 {[%clk 0:02:12]}  h6 {[%clk 0:01:39]} 18. Rxd4 {[%clk 0:02:04]}  hxg5 {[%clk 0:01:38]} 19. fxg5 {[%clk 0:02:04]}  Bxg5 {[%clk 0:01:36]} 20. Rad1 {[%clk 0:01:58]}  Bf6 {[%clk 0:01:35]} 21. R4d2 {[%clk 0:01:57]}  e5 {[%clk 0:01:05]} 22. Qc6 {[%clk 0:01:51]}  Qxc6 {[%clk 0:01:05]} 23. Bxc6 {[%clk 0:01:52]}  Ba6 {[%clk 0:01:03]} 24. Rd7 {[%clk 0:01:49]}  b4 {[%clk 0:00:59]} 25. Rxc7 {[%clk 0:01:47]}  c3 {[%clk 0:00:59]} 26. bxc3 {[%clk 0:01:46]}  bxc3 {[%clk 0:00:59]} 27. Bd5 {[%clk 0:01:43]}  e4 {[%clk 0:00:51]} 28. Bxe4 {[%clk 0:01:40]}  Bxe2 {[%clk 0:00:51]} 29. Rc1 {[%clk 0:01:40]}  Rd8 {[%clk 0:00:37]} 30. Rxa7 {[%clk 0:01:37]}  Rd2 {[%clk 0:00:32]} 31. a4 {[%clk 0:01:19]}  Bd4 {[%clk 0:00:30]} 32. Rc7 {[%clk 0:01:11]}  Ba6 {[%clk 0:00:23]} 33. R1xc3 {[%clk 0:00:59]}  Rxf2 {[%clk 0:00:13]} 34. Kh1 {[%clk 0:00:26]}  Bxc3 {[%clk 0:00:12]} 35. Rxc3 {[%clk 0:00:26]}  Rf4 {[%clk 0:00:11]} 36. Bd5 {[%clk 0:00:24]}  Rxa4 {[%clk 0:00:09]} 37. Rc7 {[%clk 0:00:24]}  Ra1+ {[%clk 0:00:08]} 38. Kg2 {[%clk 0:00:23]}  Rf1 {[%clk 0:00:08]} 39. Ra7 {[%clk 0:00:20]}  Rf6 {[%clk 0:00:07]} 40. Bxf7+ {[%clk 0:00:17]}  Rxf7 {[%clk 0:00:07]} 41. Rxa6 {[%clk 0:00:17]}  Kg7 {[%clk 0:00:08]} 42. Kg3 {[%clk 0:00:16]}  Re7 {[%clk 0:00:08]} 43. h4 {[%clk 0:00:16]}  Rd7 {[%clk 0:00:08]} 44. Kg4 {[%clk 0:00:15]}  Rd4+ {[%clk 0:00:07]} 45. Kg5 {[%clk 0:00:15]}  Rd5+ {[%clk 0:00:07]} 46. Kg4 {[%clk 0:00:15]}  Rd4+ {[%clk 0:00:08]} 47. Kg5 {[%clk 0:00:16]}  Rd5+ {[%clk 0:00:08]} 48. Kg4 {[%clk 0:00:16]}  Rd4+ {[%clk 0:00:08]} 1/2-1/2


[Site "https://www.chess.com"]

[Event "Titled Tuesday Blitz August 09 Early 2022"]
[White "Melikhov, Evgeny V."]
[Black "Sanchez, Robert"]
[WhiteFideId "4122046"]
[BlackFideId "2034360"]
[WhiteElo "1963"]
[BlackElo "2277"]
[Result "1-0"]
[Round "07"]
[TimeControl "180+1"]
[Date "2022.08.09"]
[WhiteClock "0:01:28"]
[BlackClock "0:01:41"]

1. e4 {[%clk 0:03:00]}  e6 {[%clk 0:02:59]} 2. d4 {[%clk 0:03:00]}  d5 {[%clk 0:03:00]} 3. Nc3 {[%clk 0:03:00]}  Nf6 {[%clk 0:03:00]} 4. Bg5 {[%clk 0:02:58]}  Be7 {[%clk 0:03:00]} 5. e5 {[%clk 0:02:56]}  Nfd7 {[%clk 0:03:00]} 6. h4 {[%clk 0:02:53]}  h6 {[%clk 0:03:00]} 7. Bxe7 {[%clk 0:02:53]}  Qxe7 {[%clk 0:03:01]} 8. h5 {[%clk 0:02:51]}  a6 {[%clk 0:03:01]} 9. Qg4 {[%clk 0:02:49]}  Kf8 {[%clk 0:03:01]} 10. Nf3 {[%clk 0:02:47]}  c5 {[%clk 0:03:01]} 11. O-O-O {[%clk 0:02:36]}  c4 {[%clk 0:03:01]} 12. Rh4 {[%clk 0:02:35]}  b5 {[%clk 0:03:00]} 13. Qg3 {[%clk 0:02:21]}  Nb6 {[%clk 0:02:50]} 14. Rf4 {[%clk 0:02:20]}  b4 {[%clk 0:02:48]} 15. Ne2 {[%clk 0:02:18]}  c3 {[%clk 0:02:43]} 16. Nh4 {[%clk 0:02:16]}  Kg8 {[%clk 0:02:39]} 17. Rg4 {[%clk 0:02:15]}  Rh7 {[%clk 0:02:14]} 18. Nf4 {[%clk 0:02:14]}  f5 {[%clk 0:02:01]} 19. exf6 {[%clk 0:02:13]}  Qxf6 {[%clk 0:02:00]} 20. Bd3 {[%clk 0:02:10]}  cxb2+ {[%clk 0:01:56]} 21. Kb1 {[%clk 0:02:09]}  Na4 {[%clk 0:01:55]} 22. Bxh7+ {[%clk 0:02:03]}  Kxh7 {[%clk 0:01:55]} 23. Rd3 {[%clk 0:01:50]}  Nc3+ {[%clk 0:01:52]} 24. Kxb2 {[%clk 0:01:50]}  Nc6 {[%clk 0:01:48]} 25. Rg6 {[%clk 0:01:41]}  Qe7 {[%clk 0:01:43]} 26. Rxh6+ {[%clk 0:01:33]}  gxh6 {[%clk 0:01:41]} 27. Qg6+ {[%clk 0:01:33]}  Kh8 {[%clk 0:01:41]} 28. Qxh6+ {[%clk 0:01:28]}  Qh7 {[%clk 0:01:41]} 1-0


[Site "https://www.chess.com"]

[Event "Titled Tuesday Blitz August 09 Early 2022"]
[White "Mohammed, Dilshad"]
[Black "Papasimakopoulos, Alexandros"]
[WhiteFideId "5050421"]
[BlackFideId "4244125"]
[WhiteElo "2102"]
[BlackElo "2357"]
[Result "0-1"]
[Round "07"]
[TimeControl "180+1"]
[Date "2022.08.09"]
[WhiteClock "0:00:07"]
[BlackClock "0:00:07"]

1. Nf3 {[%clk 0:02:56]}  d5 {[%clk 0:02:57]} 2. c4 {[%clk 0:02:52]}  e6 {[%clk 0:02:55]} 3. e3 {[%clk 0:02:52]}  Nf6 {[%clk 0:02:55]} 4. cxd5 {[%clk 0:02:53]}  exd5 {[%clk 0:02:55]} 5. d4 {[%clk 0:02:54]}  c6 {[%clk 0:02:48]} 6. Bd3 {[%clk 0:02:54]}  Bd6 {[%clk 0:02:48]} 7. h3 {[%clk 0:02:54]}  O-O {[%clk 0:02:47]} 8. Nc3 {[%clk 0:02:54]}  Re8 {[%clk 0:02:47]} 9. Qc2 {[%clk 0:02:55]}  Nbd7 {[%clk 0:02:47]} 10. O-O {[%clk 0:02:54]}  Nf8 {[%clk 0:02:47]} 11. Rb1 {[%clk 0:02:52]}  a5 {[%clk 0:02:45]} 12. a3 {[%clk 0:02:52]}  Bd7 {[%clk 0:02:36]} 13. b4 {[%clk 0:02:51]}  axb4 {[%clk 0:02:36]} 14. axb4 {[%clk 0:02:52]}  b5 {[%clk 0:02:35]} 15. Re1 {[%clk 0:02:41]}  Qb6 {[%clk 0:02:24]} 16. e4 {[%clk 0:02:40]}  dxe4 {[%clk 0:02:23]} 17. Nxe4 {[%clk 0:02:41]}  Nxe4 {[%clk 0:02:18]} 18. Bxe4 {[%clk 0:02:42]}  Ra4 {[%clk 0:02:10]} 19. Be3 {[%clk 0:02:40]}  Qb7 {[%clk 0:02:04]} 20. Bd2 {[%clk 0:02:31]}  h6 {[%clk 0:02:04]} 21. h4 {[%clk 0:02:11]}  Ne6 {[%clk 0:02:03]} 22. Qd3 {[%clk 0:02:07]}  Nf4 {[%clk 0:01:57]} 23. Bxf4 {[%clk 0:02:04]}  Bxf4 {[%clk 0:01:58]} 24. d5 {[%clk 0:02:00]}  Bd6 {[%clk 0:01:34]} 25. dxc6 {[%clk 0:01:56]}  Bxc6 {[%clk 0:01:35]} 26. Bh7+ {[%clk 0:01:52]}  Kh8 {[%clk 0:01:35]} 27. Rxe8+ {[%clk 0:01:48]}  Bxe8 {[%clk 0:01:35]} 28. Be4 {[%clk 0:01:38]}  Qc7 {[%clk 0:01:29]} 29. Rd1 {[%clk 0:01:34]}  Ra6 {[%clk 0:01:09]} 30. Nd4 {[%clk 0:01:25]}  Rb6 {[%clk 0:00:57]} 31. Nf5 {[%clk 0:01:24]}  Bf8 {[%clk 0:00:46]} 32. Qd8 {[%clk 0:01:11]}  Qb8 {[%clk 0:00:38]} 33. Bc2 {[%clk 0:01:01]}  g6 {[%clk 0:00:37]} 34. Qd4+ {[%clk 0:00:54]}  Kg8 {[%clk 0:00:36]} 35. Qg4 {[%clk 0:00:46]}  h5 {[%clk 0:00:21]} 36. Qg5 {[%clk 0:00:44]}  Re6 {[%clk 0:00:19]} 37. Ng3 {[%clk 0:00:36]}  Be7 {[%clk 0:00:16]} 38. Qd5 {[%clk 0:00:30]}  Bxb4 {[%clk 0:00:14]} 39. Ne4 {[%clk 0:00:28]}  Be7 {[%clk 0:00:14]} 40. Bb3 {[%clk 0:00:27]}  Qe5 {[%clk 0:00:13]} 41. Ng3 {[%clk 0:00:18]}  Qxd5 {[%clk 0:00:13]} 42. Bxd5 {[%clk 0:00:18]}  Re5 {[%clk 0:00:13]} 43. Ne4 {[%clk 0:00:14]}  Bxh4 {[%clk 0:00:13]} 44. g3 {[%clk 0:00:14]}  Be7 {[%clk 0:00:09]} 45. f4 {[%clk 0:00:15]}  Rf5 {[%clk 0:00:10]} 46. Kg2 {[%clk 0:00:14]}  Kg7 {[%clk 0:00:08]} 47. Kf3 {[%clk 0:00:13]}  b4 {[%clk 0:00:07]} 48. Rd3 {[%clk 0:00:13]}  g5 {[%clk 0:00:07]} 49. Ke3 {[%clk 0:00:12]}  gxf4+ {[%clk 0:00:07]} 50. gxf4 {[%clk 0:00:13]}  h4 {[%clk 0:00:08]} 51. Kf3 {[%clk 0:00:13]}  h3 {[%clk 0:00:08]} 52. Rd2 {[%clk 0:00:13]}  Rh5 {[%clk 0:00:07]} 53. Ng3 {[%clk 0:00:12]}  Rh8 {[%clk 0:00:07]} 54. Be4 {[%clk 0:00:12]}  Bf6 {[%clk 0:00:06]} 55. Nf5+ {[%clk 0:00:11]}  Kf8 {[%clk 0:00:06]} 56. Ng3 {[%clk 0:00:08]}  h2 {[%clk 0:00:07]} 57. Nh1 {[%clk 0:00:08]}  b3 {[%clk 0:00:07]} 58. Rd1 {[%clk 0:00:07]}  b2 {[%clk 0:00:08]} 59. Nf2 {[%clk 0:00:07]}  Bc3 {[%clk 0:00:07]} 60. Ke2 {[%clk 0:00:07]}  f6 {[%clk 0:00:07]} 61. Ng4 {[%clk 0:00:07]}  Bh5 {[%clk 0:00:07]} 62. Kf3 {[%clk 0:00:07]}  Ke7 {[%clk 0:00:06]} 63. Kg3 {[%clk 0:00:07]}  Bxg4 {[%clk 0:00:06]} 64. Kxg4 {[%clk 0:00:07]}  Bd2 {[%clk 0:00:04]} 65. Bh1 {[%clk 0:00:06]}  Bc1 {[%clk 0:00:04]} 66. Re1+ {[%clk 0:00:06]}  Kd6 {[%clk 0:00:04]} 67. Be4 {[%clk 0:00:06]}  Kc5 {[%clk 0:00:03]} 68. Rd1 {[%clk 0:00:06]}  Kc4 {[%clk 0:00:03]} 69. Kf5 {[%clk 0:00:06]}  Kc3 {[%clk 0:00:04]} 70. Rd3+ {[%clk 0:00:06]}  Kb4 {[%clk 0:00:03]} 71. Rd1 {[%clk 0:00:07]}  h1=Q {[%clk 0:00:04]} 72. Bxh1 {[%clk 0:00:04]}  Rxh1 {[%clk 0:00:03]} 73. Rd4+ {[%clk 0:00:05]}  Kc3 {[%clk 0:00:03]} 74. Re4 {[%clk 0:00:05]}  b1=Q {[%clk 0:00:04]} 75. Ke6 {[%clk 0:00:05]}  Qxe4+ {[%clk 0:00:05]} 76. Kxf6 {[%clk 0:00:06]}  Qxf4+ {[%clk 0:00:05]} 77. Ke6 {[%clk 0:00:06]}  Qd4 {[%clk 0:00:06]} 78. Ke7 {[%clk 0:00:07]}  Re1+ {[%clk 0:00:07]} 0-1


[Site "https://www.chess.com"]

[Event "Titled Tuesday Blitz August 09 Early 2022"]
[White "Navarrete Mendez, Gonzalo Alberto"]
[Black "Kostiukov, Alexandr"]
[WhiteFideId "5106850"]
[BlackFideId "14108100"]
[WhiteElo "2261"]
[BlackElo "2202"]
[Result "1-0"]
[Round "07"]
[TimeControl "180+1"]
[Date "2022.08.09"]
[WhiteClock "0:01:51"]
[BlackClock "0:00:02"]

1. e4 {[%clk 0:03:00]}  c5 {[%clk 0:02:59]} 2. Nf3 {[%clk 0:03:00]}  g6 {[%clk 0:02:59]} 3. Nc3 {[%clk 0:03:01]}  Bg7 {[%clk 0:02:59]} 4. Bc4 {[%clk 0:03:01]}  Nc6 {[%clk 0:02:57]} 5. O-O {[%clk 0:03:02]}  e6 {[%clk 0:02:51]} 6. d4 {[%clk 0:03:01]}  cxd4 {[%clk 0:02:50]} 7. Nb5 {[%clk 0:03:01]}  d5 {[%clk 0:02:45]} 8. exd5 {[%clk 0:03:02]}  exd5 {[%clk 0:02:45]} 9. Bxd5 {[%clk 0:03:03]}  Nge7 {[%clk 0:02:45]} 10. Bxc6+ {[%clk 0:03:02]}  Nxc6 {[%clk 0:02:44]} 11. Bg5 {[%clk 0:03:02]}  Qb6 {[%clk 0:02:28]} 12. Nd6+ {[%clk 0:03:00]}  Kf8 {[%clk 0:02:27]} 13. Bf4 {[%clk 0:02:57]}  Be6 {[%clk 0:02:20]} 14. Ng5 {[%clk 0:02:34]}  h6 {[%clk 0:01:31]} 15. Nxe6+ {[%clk 0:02:33]}  fxe6 {[%clk 0:01:32]} 16. Qg4 {[%clk 0:02:32]}  e5 {[%clk 0:00:20]} 17. Qxg6 {[%clk 0:02:17]}  Qc7 {[%clk 0:00:20]} 18. Bg3 {[%clk 0:02:01]}  Kg8 {[%clk 0:00:18]} 19. f4 {[%clk 0:01:55]}  Rf8 {[%clk 0:00:02]} 20. fxe5 {[%clk 0:01:51]} 1-0


[Site "https://www.chess.com"]

[Event "Titled Tuesday Blitz August 09 Early 2022"]
[White "Nurmanova, Alua"]
[Black "Weetik, Vjacheslav"]
[WhiteFideId "13729390"]
[BlackFideId "4153472"]
[WhiteElo "1921"]
[BlackElo "2469"]
[Result "0-1"]
[Round "07"]
[TimeControl "180+1"]
[Date "2022.08.09"]
[WhiteClock "0:00:02"]
[BlackClock "0:00:14"]

1. e4 {[%clk 0:03:00]}  c6 {[%clk 0:02:51]} 2. d4 {[%clk 0:03:00]}  d5 {[%clk 0:02:50]} 3. e5 {[%clk 0:03:00]}  Bf5 {[%clk 0:02:50]} 4. h4 {[%clk 0:02:56]}  Qb6 {[%clk 0:02:48]} 5. g4 {[%clk 0:02:53]}  Bd7 {[%clk 0:02:47]} 6. c3 {[%clk 0:02:43]}  h5 {[%clk 0:02:41]} 7. f3 {[%clk 0:02:35]}  c5 {[%clk 0:02:35]} 8. g5 {[%clk 0:01:46]}  g6 {[%clk 0:02:29]} 9. Ne2 {[%clk 0:01:44]}  Nc6 {[%clk 0:02:08]} 10. a3 {[%clk 0:01:39]}  Bf5 {[%clk 0:02:02]} 11. b4 {[%clk 0:01:37]}  cxd4 {[%clk 0:02:00]} 12. cxd4 {[%clk 0:01:38]}  e6 {[%clk 0:01:52]} 13. Nbc3 {[%clk 0:01:37]}  Nge7 {[%clk 0:01:47]} 14. Be3 {[%clk 0:01:30]}  Nxe5 {[%clk 0:01:25]} 15. dxe5 {[%clk 0:01:10]}  Qxe3 {[%clk 0:01:24]} 16. Nb5 {[%clk 0:01:10]}  Qxe5 {[%clk 0:01:08]} 17. f4 {[%clk 0:01:02]}  Qb8 {[%clk 0:00:52]} 18. Rc1 {[%clk 0:00:49]}  Nc6 {[%clk 0:00:52]} 19. Nbd4 {[%clk 0:00:42]}  Be4 {[%clk 0:00:48]} 20. Rh3 {[%clk 0:00:40]}  Bg7 {[%clk 0:00:44]} 21. Nxc6 {[%clk 0:00:27]}  bxc6 {[%clk 0:00:44]} 22. Rxc6 {[%clk 0:00:26]}  O-O {[%clk 0:00:44]} 23. Qd2 {[%clk 0:00:17]}  a5 {[%clk 0:00:36]} 24. bxa5 {[%clk 0:00:12]}  e5 {[%clk 0:00:35]} 25. fxe5 {[%clk 0:00:06]}  Qxe5 {[%clk 0:00:32]} 26. Re3 {[%clk 0:00:03]}  Qh2 {[%clk 0:00:20]} 27. Ng3 {[%clk 0:00:03]}  Qxh4 {[%clk 0:00:20]} 28. Rb3 {[%clk 0:00:03]}  Rfe8 {[%clk 0:00:15]} 29. Kd1 {[%clk 0:00:02]}  Bf3+ {[%clk 0:00:14]} 0-1


[Site "https://www.chess.com"]

[Event "Titled Tuesday Blitz August 09 Early 2022"]
[White "Omelja, Artem"]
[Black "Costachi, Mihnea"]
[WhiteFideId "14119846"]
[BlackFideId "1217518"]
[WhiteElo "2382"]
[BlackElo "2437"]
[Result "0-1"]
[Round "07"]
[TimeControl "180+1"]
[Date "2022.08.09"]
[WhiteClock "0:00:04"]
[BlackClock "0:00:30"]

1. d4 {[%clk 0:03:00]}  d5 {[%clk 0:02:56]} 2. c4 {[%clk 0:02:59]}  c6 {[%clk 0:02:57]} 3. Nc3 {[%clk 0:02:57]}  Nf6 {[%clk 0:02:57]} 4. e3 {[%clk 0:02:57]}  g6 {[%clk 0:02:55]} 5. Nf3 {[%clk 0:02:55]}  Bg7 {[%clk 0:02:55]} 6. Qc2 {[%clk 0:02:54]}  O-O {[%clk 0:02:54]} 7. Bd3 {[%clk 0:02:46]}  dxc4 {[%clk 0:02:48]} 8. Bxc4 {[%clk 0:02:46]}  b5 {[%clk 0:02:48]} 9. Be2 {[%clk 0:02:46]}  a6 {[%clk 0:02:48]} 10. Ne5 {[%clk 0:02:38]}  Bb7 {[%clk 0:02:44]} 11. Bf3 {[%clk 0:02:36]}  Qc7 {[%clk 0:02:44]} 12. O-O {[%clk 0:02:31]}  Nbd7 {[%clk 0:02:41]} 13. Nxd7 {[%clk 0:02:29]}  Nxd7 {[%clk 0:02:37]} 14. b4 {[%clk 0:01:56]}  a5 {[%clk 0:02:25]} 15. Nxb5 {[%clk 0:01:31]}  Qb6 {[%clk 0:02:26]} 16. Na3 {[%clk 0:01:07]}  axb4 {[%clk 0:02:26]} 17. Nc4 {[%clk 0:01:08]}  Qb5 {[%clk 0:02:26]} 18. Bb2 {[%clk 0:00:58]}  Qa4 {[%clk 0:02:20]} 19. Qb3 {[%clk 0:00:43]}  Qb5 {[%clk 0:02:14]} 20. Rac1 {[%clk 0:00:41]}  Rfc8 {[%clk 0:01:58]} 21. Rfd1 {[%clk 0:00:37]}  Qa4 {[%clk 0:01:58]} 22. Qxa4 {[%clk 0:00:33]}  Rxa4 {[%clk 0:01:58]} 23. a3 {[%clk 0:00:33]}  Ba6 {[%clk 0:01:53]} 24. Rd2 {[%clk 0:00:15]}  c5 {[%clk 0:01:34]} 25. Bd1 {[%clk 0:00:14]}  Bxc4 {[%clk 0:01:25]} 26. Bxa4 {[%clk 0:00:13]}  Nb6 {[%clk 0:01:25]} 27. dxc5 {[%clk 0:00:05]}  Nxa4 {[%clk 0:01:23]} 28. Bxg7 {[%clk 0:00:05]}  Be6 {[%clk 0:00:44]} 29. Bb2 {[%clk 0:00:05]}  Nxb2 {[%clk 0:00:41]} 30. Rxb2 {[%clk 0:00:05]}  bxa3 {[%clk 0:00:41]} 31. Rb6 {[%clk 0:00:05]}  a2 {[%clk 0:00:41]} 32. Ra6 {[%clk 0:00:05]}  Kf8 {[%clk 0:00:38]} 33. f3 {[%clk 0:00:05]}  Rb8 {[%clk 0:00:35]} 34. Kf2 {[%clk 0:00:02]}  Rb1 {[%clk 0:00:29]} 35. Rc2 {[%clk 0:00:01]}  a1=Q {[%clk 0:00:29]} 36. Rxa1 {[%clk 0:00:02]}  Rxa1 {[%clk 0:00:29]} 37. c6 {[%clk 0:00:03]}  Ra2 {[%clk 0:00:28]} 38. Rxa2 {[%clk 0:00:01]}  Bxa2 {[%clk 0:00:29]} 39. c7 {[%clk 0:00:01]}  Be6 {[%clk 0:00:30]} 40. e4 {[%clk 0:00:01]}  Ke8 {[%clk 0:00:30]} 41. Ke3 {[%clk 0:00:02]}  Kd7 {[%clk 0:00:31]} 42. Kf4 {[%clk 0:00:03]}  f6 {[%clk 0:00:31]} 43. e5 {[%clk 0:00:03]}  Kxc7 {[%clk 0:00:30]} 44. exf6 {[%clk 0:00:04]}  exf6 {[%clk 0:00:30]} 0-1


[Site "https://www.chess.com"]

[Event "Titled Tuesday Blitz August 09 Early 2022"]
[White "Ouellet, Maili-Jade"]
[Black "parintele_chess"]
[WhiteFideId "2620472"]
[WhiteElo "1899"]
[BlackElo "2214"]
[Result "1-0"]
[Round "07"]
[TimeControl "180+1"]
[Date "2022.08.09"]
[WhiteClock "0:00:05"]
[BlackClock "0:00:02"]

1. d4 {[%clk 0:03:00]}  d5 {[%clk 0:02:59]} 2. c4 {[%clk 0:03:00]}  e6 {[%clk 0:02:59]} 3. Nc3 {[%clk 0:03:00]}  a6 {[%clk 0:03:00]} 4. cxd5 {[%clk 0:03:00]}  exd5 {[%clk 0:03:01]} 5. Bf4 {[%clk 0:03:00]}  c6 {[%clk 0:03:00]} 6. e3 {[%clk 0:03:00]}  Be6 {[%clk 0:03:00]} 7. Bd3 {[%clk 0:02:59]}  Bd6 {[%clk 0:02:59]} 8. Nge2 {[%clk 0:02:59]}  Nf6 {[%clk 0:02:54]} 9. Qc2 {[%clk 0:02:58]}  h6 {[%clk 0:02:53]} 10. O-O {[%clk 0:02:57]}  O-O {[%clk 0:02:50]} 11. Rad1 {[%clk 0:02:54]}  Qe7 {[%clk 0:02:41]} 12. Be5 {[%clk 0:02:48]}  Bxe5 {[%clk 0:02:36]} 13. dxe5 {[%clk 0:02:47]}  Nfd7 {[%clk 0:02:34]} 14. f4 {[%clk 0:02:46]}  Nc5 {[%clk 0:02:34]} 15. Bh7+ {[%clk 0:02:37]}  Kh8 {[%clk 0:02:34]} 16. b4 {[%clk 0:02:36]}  Ncd7 {[%clk 0:02:26]} 17. f5 {[%clk 0:02:27]}  Qxb4 {[%clk 0:02:05]} 18. fxe6 {[%clk 0:02:25]}  fxe6 {[%clk 0:02:06]} 19. Rxf8+ {[%clk 0:02:12]}  Nxf8 {[%clk 0:02:07]} 20. Bd3 {[%clk 0:02:09]}  Nbd7 {[%clk 0:02:06]} 21. Nf4 {[%clk 0:02:01]}  Nxe5 {[%clk 0:02:00]} 22. Rf1 {[%clk 0:02:00]}  Qc5 {[%clk 0:01:52]} 23. Qd2 {[%clk 0:01:45]}  Ng4 {[%clk 0:01:32]} 24. Rf3 {[%clk 0:01:32]}  e5 {[%clk 0:01:26]} 25. Ng6+ {[%clk 0:01:31]}  Nxg6 {[%clk 0:01:05]} 26. Bxg6 {[%clk 0:01:32]}  e4 {[%clk 0:01:06]} 27. Rg3 {[%clk 0:01:20]}  Ne5 {[%clk 0:01:04]} 28. Qd4 {[%clk 0:00:43]}  Qe7 {[%clk 0:00:43]} 29. Ne2 {[%clk 0:00:33]}  Rd8 {[%clk 0:00:13]} 30. Nf4 {[%clk 0:00:24]}  Kg8 {[%clk 0:00:05]} 31. Bf5 {[%clk 0:00:18]}  Qf6 {[%clk 0:00:03]} 32. Be6+ {[%clk 0:00:13]}  Kf8 {[%clk 0:00:03]} 33. Qxe5 {[%clk 0:00:11]}  Qxe5 {[%clk 0:00:03]} 34. Ng6+ {[%clk 0:00:11]}  Ke8 {[%clk 0:00:02]} 35. Nxe5 {[%clk 0:00:11]}  Ke7 {[%clk 0:00:02]} 36. Bf5 {[%clk 0:00:10]}  Kf6 {[%clk 0:00:02]} 37. Nf7 {[%clk 0:00:05]}  Rf8 {[%clk 0:00:02]} 38. Nxh6 {[%clk 0:00:03]}  gxh6 {[%clk 0:00:02]} 39. Bg4 {[%clk 0:00:04]}  Rd8 {[%clk 0:00:01]} 40. Be2 {[%clk 0:00:04]}  c5 {[%clk 0:00:02]} 41. Kf2 {[%clk 0:00:04]}  Ke5 {[%clk 0:00:02]} 42. Rh3 {[%clk 0:00:04]}  d4 {[%clk 0:00:03]} 43. exd4+ {[%clk 0:00:04]}  cxd4 {[%clk 0:00:03]} 44. Rh5+ {[%clk 0:00:05]}  Kf4 {[%clk 0:00:02]} 45. g3# {[%clk 0:00:05]} 1-0


[Site "https://www.chess.com"]